[Event "Sautron op 14th"]
[Site "Sautron"]
[Date "2014.11.01"]
[Round "9"]
[White "Dumitrache, Dragos Nicolae"]
[Black "Koziak, Vitali"]
[Result "1/2-1/2"]
[ECO "D11"]
[WhiteElo "2413"]
[BlackElo "2454"]
[Annotator "RR"]
[PlyCount "91"]
[EventDate "2014.10.26"]
[EventType "swiss"]
[EventRounds "9"]
[EventCountry "FRA"]
[SourceTitle "EXT 2015"]
[Source "ChessBase"]
[SourceDate "2014.11.20"]
[SourceVersion "1"]
[SourceVersionDate "2014.11.20"]
[SourceQuality "1"]
[TimeControl "40/5400+30:1800+30"]

1. Nf3 d5 2. c4 c6 3. d4 Nf6 4. e3 Bg4 5. Nbd2 Nbd7 (5... e6 6. Qb3 Qc7 7. h3
Bh5 8. g4 Bg6 9. Ne5 Nbd7 10. Nxg6 hxg6 11. g5 Ne4 12. Nxe4 dxe4 13. Bd2 Be7
14. Rg1 Rh5 15. Qc2 Rxg5 16. Rxg5 Bxg5 17. Qxe4 O-O-O 18. O-O-O Bf6 19. f4 g5
20. f5 e5 21. c5 Rh8 22. Kb1 Rh4 23. Qc2 exd4 24. Be1 d3 25. Rxd3 Rh8 26. e4 a6
27. Bg3 Ne5 28. Rd6 Rd8 29. Qd1 Rxd6 30. cxd6 Qb6 31. Qe2 Qd4 32. Bxe5 Bxe5 33.
d7+ Kd8 34. a3 b5 35. Ka2 {Bologan,V (2661)-Vitiugov,N (2742) Dubai 2014 0-1})
6. Qc2 e6 7. Bd3 Bd6 8. b3 e5 (8... a6) 9. dxe5 Nxe5 10. Be2 $146 (10. Nxe5
Bxe5 11. Bb2 Bxb2 12. Qxb2 O-O 13. Be2 Bxe2 14. Kxe2 Qd7 15. h3 Rfe8 16. cxd5
Nxd5 17. Rhd1 Rad8 18. Kf1 c5 19. Qc2 Rxe3 20. Qxc5 Rd3 21. Nc4 b6 22. Qa3 Nf4
23. Rxd3 Qxd3+ 24. Kg1 Qg6 25. g3 Nxh3+ 26. Kf1 Qd3+ 27. Kg2 Nxf2 28. Rf1 Ne4
29. Qe7 Qxg3+ 30. Kh1 Nf2+ {0-1 (30) Denger,P (2088)-Pert,N (2565) Bunratty
2015}) 10... Nxf3+ 11. Bxf3 Be5 12. Bb2 Bxb2 13. Qxb2 Bxf3 14. Qe5+ Qe7 15.
Nxf3 Qxe5 (15... dxc4 16. bxc4 Qxe5 17. Nxe5 O-O $11) 16. Nxe5 O-O 17. cxd5
Nxd5 18. O-O-O Rfe8 19. Nc4 Rad8 $11 20. a3 f5 21. Rd3 Re6 22. Kb2 (22. Rhd1)
22... f4 23. g3 fxe3 24. Nxe3 Rf8 25. Nxd5 Rxf2+ 26. Kc3 cxd5 27. Rxd5 Re3+ 28.
Rd3 Rxd3+ 29. Kxd3 h5 (29... Kf7) 30. a4 Kh7 31. a5 Kh6 32. b4 a6 33. Kd4 g6
34. h4 Rf3 35. Rg1 g5 36. Re1 gxh4 37. gxh4 Rf6 38. Re7 Rg6 39. Rxb7 Rg4+ 40.
Kc5 Rxh4 41. Rb6+ Kg7 42. Rxa6 Rh1 43. Rd6 h4 44. Kb6 h3 45. Rd2 Rf1 46. a6
1/2-1/2